Workbook

Sheet Disclaimer & uitleg model
L21: voorbeeld:

Sheet CO2-berekening
C2: Berekening CO2-emissie geothermie in warmtenetwerk
D5: Geothermiebron | I5: Evt. andere bronnen | P5: Warmtepomp | V5: Bijstook | Z5: Warmteverlies | AD5: Warmtenet
D7: Aandeel in warmtevraag (in %): | E7: 0.8 | I7: 0 | K7: 0 | M7: 0 | Q7: 0 | U7: 0.2 | W7: 0 | AA7: 0.2
Q8: COP:
D9: Totaal geproduceerde energie | E9: 337475 | F9: GJth | I9: bron 1 | K9: bron 2 | M9: bron 3 | Q9: 5 | U9: bijstook 1 | W9: bijstook 2
D10: Elektricteitsverbruik (1 of 2 invullen) | I10: Aardgasketel (NL) | K10: Biomassa, uit NL | M10: AVI - fortfaitair 2020 | U10: Aardgasketel (NL) | W10: Biomassa, uit NL
D11: 1) Totaal geconsumeerde elektriciteit | E11: 21545 | F11: GJe
D12: 2) COP
D13: Productietemperatuur | E13: 82 | F13: °C
D14: Retourtemperatuur | E14: 35 | F14: °C
D15: Draaiuren | E15: 6657 | F15: uur/jaar
D16: Debiet | E16: 213 | F16: m3/h
D17: Gem. bijvangst | E17: 0.1 | F17: Nm3/m3
C28: =IF(aandeel_bron+aandeel_bron1+aandeel_bron2+aandeel_bron3+aandeel_WP+aandeel_piek1+aandeel_piek2>1,"Let op! Aandeel in warmtevraag > 100%","") -> 
C29: =IF(aandeel_bron+aandeel_bron1+aandeel_bron2+aandeel_bron3+aandeel_WP+aandeel_piek1+aandeel_piek2<1,"Let op! Aandeel in warmtevraag < 100%","") -> 
W34: Emissie bron | AD34: 2015 | AE34: 2020 | AF34: 2025 | AG34: 2030 | AH34: 20XX
W35: Emissie pompen | AC35: kg | AD35: =IF(AND(GT_elec="",COP_GT=""),"vul elec verbruik of COP in",IF(GT_elec="",((GT_prod/COP_GT)*CO2_landelijknet_2015*(1/rendement_primairfossiel_2015)),IF(COP_GT="",GT_elec*CO2_landelijknet_2015*(1/rendement_primairfossiel_2015),0))) -> 3171902.778 | AE35: =IF(AND(GT_elec="",COP_GT=""),"vul elec verbruik of COP in",IF(GT_elec="",((GT_prod/COP_GT)*CO2_landelijknet_2020*(1/rendement_primairfossiel_2020)),IF(COP_GT="",GT_elec*CO2_landelijknet_2020*(1/rendement_primairfossiel_2020),0))) -> 1795416.667 | AF35: =IF(AND(GT_elec="",COP_GT=""),"vul elec verbruik of COP in",IF(GT_elec="",((GT_prod/COP_GT)*CO2_landelijknet_2025*(1/rendement_primairfossiel_2025)),IF(COP_GT="",GT_elec*CO2_landelijknet_2025*(1/rendement_primairfossiel_2025),0))) -> 1376486.111 | AG35: =IF(AND(GT_elec="",COP_GT=""),"vul elec verbruik of COP in",IF(GT_elec="",((GT_prod/COP_GT)*CO2_landelijknet_2030*(1/rendement_primairfossiel_2030)),IF(COP_GT="",GT_elec*CO2_landelijknet_2030*(1/rendement_primairfossiel_2030),0))) -> 718166.6667 | AH35: =IF(AND(GT_elec="",COP_GT=""),"vul elec verbruik of COP in",IF(GT_elec="",((GT_prod/COP_GT)*CO2_landelijknet_20XX*(1/rendement_primairfossiel_20XX)),IF(COP_GT="",GT_elec*CO2_landelijknet_20XX*(1/rendement_primairfossiel_20XX),0))) -> 0
W36: Branstofinzet in ketel (bijvangst) | AC36: GJp | AD36: =((debiet*bijvangst)*energy_aardgas)*draaiuren -> 4981.439424 | AE36: =((debiet*bijvangst)*energy_aardgas)*draaiuren -> 4981.439424 | AF36: =((debiet*bijvangst)*energy_aardgas)*draaiuren -> 4981.439424 | AG36: =((debiet*bijvangst)*energy_aardgas)*draaiuren -> 4981.439424 | AH36: =((debiet*bijvangst)*energy_aardgas)*draaiuren -> 4981.439424
W37: Warmteproductie bijvangst | AC37: GJth | AD37: =AD36*rendement_gasketel -> 3985.151539 | AE37: =AE36*rendement_gasketel -> 3985.151539 | AF37: =AF36*rendement_gasketel -> 3985.151539 | AG37: =AG36*rendement_gasketel -> 3985.151539 | AH37: =AH36*rendement_gasketel -> 3985.151539
W38: Emissie bijvangst | AC38: kg | AD38: =AD36*emissiefactor_aardgas -> 253057.1227 | AE38: =AE36*emissiefactor_aardgas -> 253057.1227 | AF38: =AF36*emissiefactor_aardgas -> 253057.1227 | AG38: =AG36*emissiefactor_aardgas -> 253057.1227 | AH38: =AH36*emissiefactor_aardgas -> 253057.1227
W39: CO2 factor pompen | AC39: kg/GJ | AD39: =AD35/(GT_prod+AD37) -> 9.289232619 | AE39: =AE35/(GT_prod+AE37) -> 5.258056199 | AF39: =AF35/(GT_prod+AF37) -> 4.03117642 | AG39: =AG35/(GT_prod+AG37) -> 2.10322248 | AH39: =AH35/(GT_prod+AH37) -> 0
W40: CO2 factor bijvangst | AC40: kg/GJ | AD40: =AD38/(GT_prod+AD37) -> 0.7411029416 | AE40: =AE38/(GT_prod+AE37) -> 0.7411029416 | AF40: =AF38/(GT_prod+AF37) -> 0.7411029416 | AG40: =AG38/(GT_prod+AG37) -> 0.7411029416 | AH40: =AH38/(GT_prod+AH37) -> 0.7411029416
W41: CO2 emissie totaal bron | AC41: kg/GJ | AD41: =AD39+AD40 -> 10.03033556 | AE41: =AE39+AE40 -> 5.999159141 | AF41: =AF39+AF40 -> 4.772279361 | AG41: =AG39+AG40 -> 2.844325421 | AH41: =AH39+AH40 -> 0.7411029416
W43: Emissie warmtenet | AD43: 2015 | AE43: 2020 | AF43: 2025 | AG43: 2030 | AH43: 20XX
W44: Emissie geothermiebron | AC44: kg/GJ | AD44: =aandeel_bron*AD41 -> 8.024268449 | AE44: =aandeel_bron*AE41 -> 4.799327313 | AF44: =aandeel_bron*AF41 -> 3.817823489 | AG44: =aandeel_bron*AG41 -> 2.275460337 | AH44: =aandeel_bron*AH41 -> 0.5928823533
W45: Emissie geothermiebron - pompen | AC45: kg/GJ | AD45: =aandeel_bron*AD39 -> 7.431386095 | AE45: =aandeel_bron*AE39 -> 4.20644496 | AF45: 3.224941136 | AG45: 1.682577984 | AH45: 0
W46: Emissie geothermiebron - bijvangst | AC46: kg/GJ | AD46: =aandeel_bron*AD40 -> 0.5928823533 | AE46: 0.5928823533 | AF46: 0.5928823533 | AG46: 0.5928823533 | AH46: 0.5928823533
W47: ="Emissie "&I10 -> Emissie Aardgasketel (NL) | AC47: kg/GJ | AD47: =VLOOKUP($I$10,'Parameters & aannames'!$C$26:$G$42,5,0)*aandeel_bron1 -> 0 | AE47: =VLOOKUP($I$10,'Parameters & aannames'!$C$26:$G$42,5,0)*aandeel_bron1 -> 0 | AF47: =VLOOKUP($I$10,'Parameters & aannames'!$C$26:$G$42,5,0)*aandeel_bron1 -> 0 | AG47: =VLOOKUP($I$10,'Parameters & aannames'!$C$26:$G$42,5,0)*aandeel_bron1 -> 0 | AH47: =VLOOKUP($I$10,'Parameters & aannames'!$C$26:$G$42,5,0)*aandeel_bron1 -> 0
W48: ="Emissie "&K10 -> Emissie Biomassa, uit NL | AC48: kg/GJ | AD48: =VLOOKUP($K$10,'Parameters & aannames'!$C$26:$G$42,5,0)*aandeel_bron2 -> 0 | AE48: =VLOOKUP($K$10,'Parameters & aannames'!$C$26:$G$42,5,0)*aandeel_bron2 -> 0 | AF48: =VLOOKUP($K$10,'Parameters & aannames'!$C$26:$G$42,5,0)*aandeel_bron2 -> 0 | AG48: =VLOOKUP($K$10,'Parameters & aannames'!$C$26:$G$42,5,0)*aandeel_bron2 -> 0 | AH48: =VLOOKUP($K$10,'Parameters & aannames'!$C$26:$G$42,5,0)*aandeel_bron2 -> 0
W49: ="Emissie "&M10 -> Emissie AVI - fortfaitair 2020 | AC49: kg/GJ | AD49: =VLOOKUP($M$10,'Parameters & aannames'!$C$26:$G$42,5,0)*aandeel_bron3 -> 0 | AE49: =VLOOKUP($M$10,'Parameters & aannames'!$C$26:$G$42,5,0)*aandeel_bron3 -> 0 | AF49: =VLOOKUP($M$10,'Parameters & aannames'!$C$26:$G$42,5,0)*aandeel_bron3 -> 0 | AG49: =VLOOKUP($M$10,'Parameters & aannames'!$C$26:$G$42,5,0)*aandeel_bron3 -> 0 | AH49: =VLOOKUP($M$10,'Parameters & aannames'!$C$26:$G$42,5,0)*aandeel_bron3 -> 0
W50: Emissie WP | AC50: kg/GJ | AD50: =aandeel_WP*(1/rendement_primairfossiel_2015)*CO2_landelijknet_2015*(1/COP_WP) -> 0 | AE50: =aandeel_WP*(1/rendement_primairfossiel_2015)*CO2_landelijknet_2015*(1/COP_WP) -> 0 | AF50: =aandeel_WP*(1/rendement_primairfossiel_2015)*CO2_landelijknet_2015*(1/COP_WP) -> 0 | AG50: =aandeel_WP*(1/rendement_primairfossiel_2015)*CO2_landelijknet_2015*(1/COP_WP) -> 0 | AH50: =aandeel_WP*(1/rendement_primairfossiel_2015)*CO2_landelijknet_2015*(1/COP_WP) -> 0
W51: ="Emissie bijstook "&U10 -> Emissie bijstook Aardgasketel (NL) | AC51: kg/GJ | AD51: =VLOOKUP($U$10,'Parameters & aannames'!$C$26:$G$42,5,0)*aandeel_piek1 -> 12.7 | AE51: =VLOOKUP($U$10,'Parameters & aannames'!$C$26:$G$42,5,0)*aandeel_piek1 -> 12.7 | AF51: =VLOOKUP($U$10,'Parameters & aannames'!$C$26:$G$42,5,0)*aandeel_piek1 -> 12.7 | AG51: =VLOOKUP($U$10,'Parameters & aannames'!$C$26:$G$42,5,0)*aandeel_piek1 -> 12.7 | AH51: =VLOOKUP($U$10,'Parameters & aannames'!$C$26:$G$42,5,0)*aandeel_piek1 -> 12.7
W52: ="Emissie bijstook "&W10 -> Emissie bijstook Biomassa, uit NL | AC52: kg/GJ | AD52: =VLOOKUP($W$10,'Parameters & aannames'!$C$26:$G$42,5,0)*aandeel_piek2 -> 0 | AE52: =VLOOKUP($W$10,'Parameters & aannames'!$C$26:$G$42,5,0)*aandeel_piek2 -> 0 | AF52: =VLOOKUP($W$10,'Parameters & aannames'!$C$26:$G$42,5,0)*aandeel_piek2 -> 0 | AG52: =VLOOKUP($W$10,'Parameters & aannames'!$C$26:$G$42,5,0)*aandeel_piek2 -> 0 | AH52: =VLOOKUP($W$10,'Parameters & aannames'!$C$26:$G$42,5,0)*aandeel_piek2 -> 0
W53: Emissie netverlies | AC53: kg/GJ | AD53: =aandeel_verlies*AD54 -> 5.181067112 | AE53: =aandeel_verlies*AE54 -> 4.374831828 | AF53: =aandeel_verlies*AF54 -> 4.129455872 | AG53: =aandeel_verlies*AG54 -> 3.743865084 | AH53: =aandeel_verlies*AH54 -> 3.323220588
W54: Totaal | AC54: kg/GJ | AD54: =(AD44+AD47+AD48+AD49+AD50+AD51+AD52)/(1-aandeel_verlies) -> 25.90533556 | AE54: =(AE44+AE47+AE48+AE49+AE50+AE51+AE52)/(1-aandeel_verlies) -> 21.87415914 | AF54: =(AF44+AF47+AF48+AF49+AF50+AF51+AF52)/(1-aandeel_verlies) -> 20.64727936 | AG54: =(AG44+AG47+AG48+AG49+AG50+AG51+AG52)/(1-aandeel_verlies) -> 18.71932542 | AH54: =(AH44+AH47+AH48+AH49+AH50+AH51+AH52)/(1-aandeel_verlies) -> 16.61610294
W55: Doelstelling Klimaatakkoord | AD55: ='Parameters & aannames'!$D$45 -> 18.9 | AE55: ='Parameters & aannames'!$D$45 -> 18.9 | AF55: ='Parameters & aannames'!$D$45 -> 18.9 | AG55: ='Parameters & aannames'!$D$45 -> 18.9 | AH55: ='Parameters & aannames'!$D$45 -> 18.9
W56: Doelstelling Warmtewet | AD56: 25 | AE56: 25 | AF56: 25 | AG56: 25 | AH56: 25
W57: Emissie geothermiebron - pompen | AD57: =AD45/AD$54 -> 0.2868670077 | AE57: 0.1923020187 | AF57: 0.1561920619 | AG57: 0.08988454156 | AH57: 0
W58: Emissie geothermiebron - bijvangst | AD58: 0.02288649579 | AE58: 0.02710423516 | AF58: 0.02871479302 | AG58: 0.03167220719 | AH58: 0.03568119163
W59: ="Emissie "&I10 -> Emissie Aardgasketel (NL) | AD59: 0 | AE59: 0 | AF59: 0 | AG59: 0 | AH59: 0
W60: ="Emissie "&K10 -> Emissie Biomassa, uit NL | AD60: 0 | AE60: 0 | AF60: 0 | AG60: 0 | AH60: 0
W61: ="Emissie "&M10 -> Emissie AVI - fortfaitair 2020 | AD61: 0 | AE61: 0 | AF61: 0 | AG61: 0 | AH61: 0
W62: Emissie WP | AD62: 0 | AE62: 0 | AF62: 0 | AG62: 0 | AH62: 0
W63: ="Emissie bijstook "&U10 -> Emissie bijstook Aardgasketel (NL) | AD63: 0.4902464965 | AE63: 0.5805937462 | AF63: 0.6150931451 | AG63: 0.6784432512 | AH63: 0.7643188084
W64: ="Emissie bijstook "&W10 -> Emissie bijstook Biomassa, uit NL | AD64: 0 | AE64: 0 | AF64: 0 | AG64: 0 | AH64: 0
W65: Emissie netverlies | AD65: 0.2 | AE65: 0.2 | AF65: 0.2 | AG65: 0.2 | AH65: 0.2

Sheet Parameters & aannames
C2: Parameters & aannames
C4: Conversie | K4: Referentie | L4: Opmerkingen
C6: aardgas - onderwaarde | E6: 31.65 | F6: MJ/m3 = | G6: =E6/1000 -> 0.03165 | H6: GJ/m3 | K6: Zijlema (2020) | L6: calorische onderwaarde aardgas
C7: aardgas - bovenwaarde | E7: =E6*E8 -> 35.1315 | F7: MJ/m3 = | G7: =E7/1000 -> 0.0351315 | H7: GJ/m3 | K7: Zijlema (2020) | L7: calorische bovenwaarde aardgas
C8: omrekenfactor bovenwaarde/onderwaarde | E8: 1.11 | K8: RVO (2019, update 2020) | L8: bijlage 1
E10: 1 | F10: kg/kWh = | G10: 277.7777778 | H10: kg/GJ
C13: Emissiefactoren elektriciteit
E15: 2015 | F15: 2020 | G15: 2025 | H15: 2030 | I15: 20XX
C16: Emissiefactor elektriciteit | D16: kg/kWh | E16: 0.53 | F16: 0.3 | G16: 0.23 | H16: 0.12 | I16: 0 | K16: Schoots & Hammingh (2020) | L16: Integrale methode, 2020: 2015 & 2020 uit KEV 2019, p.234 2025&2030 uit KEV 2020, p. 181
C17: Rendement op primair fossiel | E17: 0.491 | F17: 0.78 | G17: 0.961 | H17: 1.532 | I17: 1 | K17: Schoots & Hammingh (2020) | L17: Integrale methode, 2020: Klimaat- en Energieverkenning 2019, p.234 2025&2030 uit KEV 2020, p. 181
C18: CO2 emissiefactor landelijk net | D18: kg/GJp | E18: =E16*1000*E17/3.6 -> 72.28611111 | F18: =F16*1000*F17/3.6 -> 65 | G18: 61.39722222 | H18: 51.06666667 | I18: 0 | K18: Schoots & Hammingh (2020) | L18: volgens berekening harmelink 7.1
C19: Emissiefactor aardgas (bovenwaarde) | D19: kg/GJ | E19: 50.8 | K19: NEN (2020) | L19: NTA8800
C20: Rendement gasketel (bovenwaarde) | D20: % | E20: 0.8 | K20: NEN (2015) | L20: NEN7125
C23: Emissiefactoren brandstof
D25: CO2 emissiefactor [kg/GJ] | E25: Rendement/COP [-] | F25: Primaire energiefactor (NTA8800) | G25: Emissiefactor geproduceerde warmte | K25: Bron:
C26: Aardgasketel (NL) | D26: 50.8 | E26: 0.8 | F26: 1 | G26: =emissiefactor_aardgas/rendement_gasketel -> 63.5 | K26: NEN (2020), rendement 80% uit NEN (2015)
C27: Aftapwarmte/WKK MD (aardgas) 2020 | G27: 13 | K27: Greenvis (2020)
C28: Aftapwarmte/WKK MD (aardgas) 2030 | G28: 5 | K28: Greenvis (2020)
C29: Aquathermie met WP 2020 | G29: 21 | K29: Greenvis (2020)
C30: Aquathermie met WP 2030 | G30: 6 | K30: Greenvis (2020)
C31: AVI - fortfaitair 2020 | G31: 9.84 | K31: Greenvis (2020)
C32: AVI - fortfaitair 2030 | G32: 4.17 | K32: Greenvis (2020)
C33: Biogas | D33: 0 | E33: 0.55 | G33: 0 | K33: NEN (2020) | L33: rendement uit MRA studie
C34: Biomassa, geen emissie | D34: 0 | F34: 0 | G34: 0 | K34: NEN (2020)
C35: Biomassa, uit NL | D35: 4.8 | E35: 1.08 | G35: =D35/E35 -> 4.444444444 | K35: RHDHV (2020)
C36: Biomassa, uit VS, pulphout | D36: 15.5 | E36: 1.01 | G36: =D36/E36 -> 15.34653465 | K36: RHDHV (2020)
C37: Biomassa, uit VS, resthout | D37: 11.5 | E37: 1.01 | G37: =D37/E37 -> 11.38613861 | K37: RHDHV (2020)
C38: Restwarmte 2020 | G38: 8.33 | K38: Greenvis (2020)
C39: Restwarmte 2030 | G39: 2.5 | K39: Greenvis (2020)
C40: Russisch aardgas | D40: 63.7 | E40: 0.89 | G40: =D40/E40 -> 71.57303371 | K40: RHDHV (2020)
C41: STEG | G41: 18.3 | K41: CE Delft (2016) | L41: data kengetallen uit 2015.
C42: Bron - eigen invulling | K42: vul hier zelf een emissiefactor in
C44: Doelstelling Warmtewet | D44: 25 | E44: kg/GJ
C45: Doelstelling Klimaatakkoord | D45: 18.9 | E45: kg/GJ
C48: Referenties
C49: Zijlema (2020). Nederlandse lijst van energiedragers en standaard CO2 emissiefactoren, versie januari 2020. RVO.
C50: RVO (2019, update 2020). Duurzaamheid van warmte- & koudelevering. Voorstel voor inhoud van de rapportageverplichting onder de Warmtewet. Eindrapport versie 3.
C51: NEN (2015). NEN 7125. Energieprestatienorm voor maatregelen op gebiedsniveau (EMG) – Bepalingsmethode.
C52: NEN (2020). NTA 8800 (nl). Energieprestatie van gebouwen – Bepalingsmethode.
C53: Schoots, K. & P. Hammingh (2020), Klimaat- en Energieverkenning 2020, Den Haag: Planbureau voor de Leefomgeving.
C54: Schoots, K. & P. Hammingh (2019), Klimaat- en Energieverkenning 2019, Den Haag: Planbureau voor de Leefomgeving.
C55: HaskoningDHV Nederland B.V. (2020). Warmte uit aardgas of biomassa? Referentie: BH1516I&BRP001F01. https://www.nvde.nl/wp-content/uploads/2020/03/BH1576-6-mei_def.pdf
C56: Greenvis (2020). Inventarisatie duurzaamheid warmtenetten, Normstelling CO2-emissie Wet collectieve Warmtevoorziening
C58: NTA8800, gebruikte tabellen:
L62: kg/kWh | M62: kg/GJ
K63: aardgas | L63: 0.183 | M63: =L63/0.0036 -> 50.83333333
K64: AVI | L64: 0.113 | M64: =L64/0.0036 -> 31.38888889
K65: Restwarmte | L65: 0.034 | M65: 9.444444444
C87: HaskoningDHV (2020):
C118: CE Delft (2016):
C139: Greenvis (2020):
